[Event "Chinese Championship-B Women 2024"]
[Site "Liaocheng"]
[Date "2024.04.25"]
[Round "10.8"]
[White "Men, Jiayi"]
[Black "Shao, Qiyu"]
[Result "1/2-1/2"]
[ECO "A43"]
[WhiteElo "1845"]
[BlackElo "1764"]
[Annotator "NA RC"]
[PlyCount "113"]
[EventDate "2024.04.24"]
[EventType "swiss"]
[EventCountry "CHN"]
[SourceTitle "playchess.com"]
[Source "ChessBase"]
[SourceQuality "1"]
[TimeControl "5400+30"]

1. Nf3 {[%emt 0:00:05]} c5 {[%emt 0:02:01]} 2. g3 {[%emt 0:00:24]} d5 {[%emt 0:00:11]} 3. d4 {[%emt 0:00:50]} cxd4 {[%emt 0:03:48]} 4. Nxd4 {[%emt 0:04:19]} e5 {[%emt 0:00:23]} 5. Nb3 {[%emt 0:01:01]} Nc6 {[%emt 0:00:28]} 6. Bg2 {[%emt 0:00:48]} Be6 {[%emt 0:01:47]} 7. O-O {[%emt 0:01:24]} Nf6 {[%emt 0:04:23]} 8. Bg5 {[%emt 0:00:55]} Be7 {[%emt 0:02:30] A43: Schmid Benoni.} 9. c3 {[%emt 0:03:35]} (9. Bxf6 $11 gxf6 (9... Bxf6 10. c4 $11) 10. Nc3) 9... Qd6 {[%emt 0:07:57]} 10. Bxf6 Bxf6 {[%emt 0:00:12]} 11. e4 {[%emt 0:06:03]} d4 {[%emt 0:01:14]} 12. cxd4 exd4 {[%emt 0:00:03]} 13. f4 {[%emt 0:02:11]} Qb4 {[%emt 0:02:49]} 14. e5 {[%emt 0:06:32]} Be7 {[%emt 0:00:16]} 15. f5 {[%emt 0:07:02]} Bxb3 {[%emt 0:00:20]} 16. Qxb3 {[%emt 0:00:30]} Qxb3 17. axb3 {[%emt 0:00:00]} O-O {[%emt 0:08:30]} 18. Bxc6 bxc6 {[%emt 0:00:02]} 19. Nd2 {[%emt 0:07:23]} Rfb8 {[%emt 0:04:00]} 20. Ra6 {[%emt 0:06:01]} c5 {[%emt 0:08:39]} 21. Rfa1 {[%emt 0:10:37]} Rb7 {[%emt 0:00:15]} 22. Kf1 {[%emt 0:03:55]} h6 {[%emt 0:00:54] [#]} 23. h4 {[%emt 0:01:43]} ({White should try} 23. Nc4 $1 $16) 23... Bd8 {[%emt 0:02:05]} 24. Ke2 {[%emt 0:01:57]} Bc7 {[%emt 0:01:07]} 25. Nc4 {[%emt 0:01:22]} Rxb3 {[%emt 0:00:28]} 26. Rxa7 {[%emt 0:00:13]} Rxa7 {[%emt 0:00:05]} 27. Rxa7 Bxe5 28. g4 {[%emt 0:06:54]} d3+ {[%emt 0:02:47]} 29. Ke3 {[%emt 0:01:21]} Bxb2 {[%emt 0:00:12]} 30. Nxb2 {[%emt 0:00:34]} Rxb2 {[%emt 0:01:13]} 31. Kxd3 {[%emt 0:00:07]} Rb4 {[%emt 0:00:09]} 32. g5 $1 {[%emt 0:00:42]} hxg5 {[%emt 0:01:44]} 33. hxg5 {[%emt 0:00:09]} Rg4 {[%emt 0:00:09]} 34. Rc7 {[%emt 0:01:28]} Rxg5 {[%emt 0:04:31]} 35. Rxc5 {[%emt 0:00:13]} Rg4 {[%emt 0:01:18]} 36. Ke3 {[%emt 0:00:48]} Kf8 {[%emt 0:01:43]} 37. Rc7 {[%emt 0:01:47]} Ke8 {[%emt 0:00:09]} 38. Ra7 {[%emt 0:01:04]} Rg1 {[%emt 0:02:59]} 39. Kf4 {[%emt 0:01:38]} Rd1 {[%emt 0:01:08]} 40. Kg5 {[%emt 0:01:31]} Rd7 {[%emt 0:00:34]} 41. Ra6 {[%emt 0:00:32]} Rc7 {[%emt 0:05:06]} 42. Rb6 {[%emt 0:01:09]} Kd7 {[%emt 0:01:58]} 43. Ra6 {[%emt 0:00:24]} Rb7 {[%emt 0:03:45]} 44. Ra8 {[%emt 0:01:19]} Ke7 {[%emt 0:02:25]} 45. Rg8 {[%emt 0:04:05]} Rb1 {[%emt 0:02:35]} 46. Rxg7 {[%emt 0:02:05]} Rh1 {[%emt 0:00:18]} 47. Kf4 {[%emt 0:02:07]} Kf6 {[%emt 0:00:01]} 48. Rg4 {[%emt 0:02:14]} Rf1+ {[%emt 0:01:14]} 49. Ke4 {[%emt 0:00:10]} Re1+ {[%emt 0:00:11]} (49... Rxf5 $5 50. Rf4 $8 Rxf4+ 51. Kxf4 Kg6 $11) 50. Kf4 {[%emt 0:00:45]} Ra1 {[%emt 0:00:32]} 51. Kf3 {[%emt 0:00:29]} Ra3+ {[%emt 0:01:11]} 52. Ke4 {[%emt 0:01:04]} Ra5 {[%emt 0:00:45]} 53. Rf4 {[%emt 0:00:49]} Re5+ {[%emt 0:01:23]} 54. Kf3 {[%emt 0:00:41]} Kg5 {[%emt 0:00:33]} 55. Rg4+ $11 {[%emt 0:00:54]} Kxf5 {[%emt 0:00:12]} 56. Rf4+ {[%emt 0:12:37]} Kg5 {[%emt 0:01:22]} 57. Rxf7 {[%emt 0:00:00]} 1/2-1/2

[Event "Chinese Championship-B Women 2024"]
[Site "Liaocheng"]
[Date "2024.04.25"]
[Round "10.9"]
[White "Wu, Shuang(Hlj)"]
[Black "Xu, Mingwei"]
[Result "1/2-1/2"]
[ECO "D04"]
[WhiteElo "1701"]
[BlackElo "2037"]
[Annotator "TA"]
[PlyCount "119"]
[EventDate "2024.04.24"]
[EventType "swiss"]
[EventCountry "CHN"]
[SourceTitle "playchess.com"]
[Source "ChessBase"]
[SourceQuality "1"]
[TimeControl "5400+30"]

{[%evp 12,119,-15,-12,-11,-7,0,0,-6,-6,0,-6,0,-11,-13,-12,0,0,19,23,29,33,35,0,0,-36,-16,-28,-23,-4,0,0,0,0,1,-29,-10,-92,-97,-105,0,0,50,46,38,35,52,43,40,37,47,0,51,0,69,40,71,36,115,108,465,561,568,385,508,486,514,519,600,556,539,482,510,424,588,518,531,53,56,0,0,0,0,0,0,0,0,0,0,0,0,0,0,0,0,0,0,0,0,0,0,0,0,0,0,0,0,0,0,0]} 1. Nf3 {[%emt 0:00:07]} Nf6 {[%emt 0:00:10]} 2. e3 {[%emt 0:00:15]} d5 {[%emt 0:00:16]} 3. d4 {[%emt 0:00:06]} c5 {[%emt 0:00:40]} 4. b3 {[%emt 0:00:24]} cxd4 {[%emt 0:00:15]} 5. exd4 {[%emt 0:00:09]} Nc6 {[%emt 0:00:25]} 6. Bb2 {[%emt 0:00:22]} Bg4 {[%emt 0:00:20]} 7. Be2 {[%emt 0:01:03]} e6 {[%emt 0:00:18]} 8. Nbd2 {[%emt 0:00:35]} Bd6 {[%emt 0:00:21]} 9. O-O {[%emt 0:00:13]} O-O {[%emt 0:00:23]} 10. Ne5 {[%emt 0:00:52]} Bf5 {[%emt 0:02:09]} 11. Ndf3 {[%emt 0:06:36]} Rc8 {[%emt 0:01:18][%cal Of5c2]} 12. Nxc6 {[%emt 0:02:50]} Rxc6 {[%emt 0:00:20]} 13. c4 {[%emt 0:01:58]} Ne4 {[%emt 0:05:48]} 14. c5 {[%emt 0:20:44]} Bb8 {[%emt 0:01:18]} 15. b4 {[%emt 0:02:35]} a6 {[%emt 0:04:53]} 16. a4 {[%emt 0:01:41]} Rc8 {[%emt 0:02:50]} 17. b5 axb5 {[%emt 0:01:53]} 18. Bxb5 {[%emt 0:05:46]} (18. axb5 $5 Qf6 19. Ra2 $11) 18... Qc7 {[%emt 0:24:26]} 19. g3 {[%emt 0:06:48]} Bg4 {[%emt 0:14:48]} 20. Be2 $1 {[%emt 0:07:24]} f5 {[%emt 0:01:31]} 21. Ne5 {[%emt 0:04:11] Prevents Qf7} Bh3 {[%emt 0:02:20]} 22. Re1 {[%emt 0:00:26]} f4 {[%emt 0:05:09]} 23. Bf3 {[%emt 0:01:21]} (23. f3 $5 fxg3 24. fxe4 $15) 23... fxg3 {[%emt 0:01:38]} 24. fxg3 {[%emt 0:00:39]} (24. hxg3 $11 Qd8 25. Bxe4 dxe4 26. Qh5 (26. Rxe4 Qd5 $11)) 24... Ng5 $17 {[%emt 0:01:46]} 25. Bg2 {[%emt 0:05:42]} Qe7 {[%emt 0:02:23]} (25... Bxg2 $17 26. Kxg2 Ne4) 26. Bc1 $11 {[%emt 0:03:53] And now Bxg5 would win.} Bf5 {[%emt 0:02:42]} (26... Qf6 $11 27. Nd3 Nf3+ (27... Qxd4+ $2 {loses.} 28. Be3 $18) 28. Bxf3 (28. Qxf3 Qxf3 29. Bxf3 Rxf3 $11) 28... Qxf3 29. Qxf3 Rxf3) 27. Bxg5 $14 {[%emt 0:04:06]} Qxg5 {[%emt 0:00:02]} 28. Nd7 {[%emt 0:00:25]} Rf7 {[%emt 0:00:58]} 29. Nxb8 {[%emt 0:00:34]} Rxb8 {[%emt 0:00:01]} 30. Qe2 {[%emt 0:03:19]} Rbf8 {[%emt 0:01:24]} 31. Rf1 {[%emt 0:01:21]} (31. Qe3 $14 {is more appropriate.} Qg6 32. a5) 31... h6 {[%emt 0:04:54]} ({Better is} 31... Bg4 $11 32. Qe1 Rxf1+ 33. Bxf1 h5) 32. a5 {[%emt 0:04:03]} (32. Rf4 $14) 32... Qg6 {[%emt 0:06:12]} (32... h5 $11) 33. Qe5 {[%emt 0:01:22] White is more active.} Qg5 {[%emt 0:04:33]} 34. Rf4 {[%emt 0:01:17]} Qf6 {[%emt 0:01:36]} (34... Qg6 $14) 35. Qxf6 $16 {[%emt 0:00:41]} gxf6 {[%emt 0:01:25][%mdl 8192] [#]} (35... Rxf6 $16 {is more resistant.} 36. Rf3 g5) 36. Rxf5 $1 $18 {[%emt 0:01:06][%mdl 512]} exf5 {[%emt 0:00:15]} 37. Bxd5 {[%emt 0:00:06][%cal Oa1b1] Black must now prevent Rb1!} Rd8 {[%emt 0:00:55]} 38. Bxf7+ Kxf7 {[%emt 0:00:01][%mdl 4096] Endgame. [#] KR-KR} 39. c6 $1 {[%emt 0:09:02][%mdl 512]} bxc6 {[%emt 0:00:13]} 40. a6 {[%emt 0:00:05]} Ke6 {[%emt 0:00:27]} 41. Kf2 {[%emt 0:00:43]} Kd5 {[%emt 0:01:17]} 42. a7 {[%emt 0:01:03]} Ra8 {[%emt 0:00:04]} 43. Ke3 {[%emt 0:00:04] Hoping for Ra4.} Kc4 {[%emt 0:00:38]} 44. Kf4 $2 {[%emt 0:00:36]} (44. Ra2 $18) 44... Kxd4 $14 {[%emt 0:00:38]} 45. Kxf5 {[%emt 0:00:08]} ({White should try} 45. Ra4+ $14 Kc3 46. Kxf5) 45... c5 $11 {[%emt 0:00:39][%cal Bc6c5,Bc5c4,Bc4c3,Bc3c2][%mdl 32] The position is equal.} 46. Kxf6 {[%emt 0:00:15]} (46. Ke6 $5 c4 $8 47. Kd7 $11 (47. Kxf6 c3 $11)) 46... c4 {[%emt 0:01:02]} 47. Kg6 {[%emt 0:03:56]} c3 {[%emt 0:00:10]} 48. Kxh6 {[%emt 0:00:22] aiming for g4.} c2 {[%emt 0:00:06]} 49. Rc1 {[%emt 0:02:17]} Kd3 {[%emt 0:00:06]} 50. g4 {[%emt 0:00:06][%cal Bg3g4,Bg4g5,Bg5g6,Bg6g7][%mdl 32] g5 is the strong threat.} Rxa7 {[%emt 0:02:00]} 51. g5 {[%emt 0:00:20]} Ra8 {[%emt 0:01:33]} 52. Kh7 {[%emt 0:01:34]} Ra4 {[%emt 0:00:18]} 53. g6 {[%emt 0:00:38] Strongly threatening g7.} Rh4+ {[%emt 0:00:06]} 54. Kg8 {[%emt 0:00:05]} Rxh2 {[%emt 0:00:08]} 55. g7 {[%emt 0:00:05]} Kd2 {[%emt 0:01:14]} 56. Rxc2+ {[%emt 0:00:07]} Kxc2 {[%emt 0:00:04]} 57. Kf8 {[%emt 0:00:05]} Rf2+ {[%emt 0:00:48]} 58. Ke7 {[%emt 0:00:11]} Re2+ {[%emt 0:00:11]} 59. Kf8 {[%emt 0:00:11]} Rf2+ {[%emt 0:00:08]} 60. Ke7 {[%emt 0:00:05] White really could win this.   Weighted Error Value: White=0.20 (precise) /Black=0.22 (precise) .  Loses game:     	---       	Black=1      Missed win:     	White=1     	---        Mistake:       	White=4     	Black=5      Inaccurate:     	White=5     	Black=1      OK:         	White=31    	Black=13     Best:        	White=3     	Black=7      Strong:       	White=1     	---} 1/2-1/2

[Event "Chinese Championship-B Women 2024"]
[Site "Liaocheng"]
[Date "2024.04.25"]
[Round "10.10"]
[White "Pi, Aiying"]
[Black "Cui, Wen"]
[Result "0-1"]
[ECO "C99"]
[WhiteElo "1617"]
[BlackElo "1825"]
[Annotator "NA RC"]
[PlyCount "98"]
[EventDate "2024.04.24"]
[EventType "swiss"]
[EventCountry "CHN"]
[SourceTitle "playchess.com"]
[Source "ChessBase"]
[SourceQuality "1"]
[TimeControl "5400+30"]

1. e4 {[%emt 0:00:03]} e5 {[%emt 0:00:11]} 2. Nf3 {[%emt 0:00:08]} Nc6 {[%emt 0:00:15]} 3. Bb5 {[%emt 0:00:16]} a6 {[%emt 0:00:25]} 4. Ba4 {[%emt 0:00:07]} Nf6 {[%emt 0:00:14]} 5. O-O {[%emt 0:00:25]} Be7 {[%emt 0:00:20]} 6. Re1 {[%emt 0:00:04]} b5 {[%emt 0:00:15]} 7. Bb3 {[%emt 0:00:05]} d6 {[%emt 0:00:16]} 8. c3 {[%emt 0:00:30]} O-O {[%emt 0:00:17]} 9. h3 {[%emt 0:00:09]} Na5 {[%emt 0:00:18]} 10. Bc2 {[%emt 0:00:11]} c5 {[%emt 0:00:32]} 11. d4 {[%emt 0:00:11]} Qc7 {[%emt 0:00:54]} 12. Nbd2 {[%emt 0:00:09]} cxd4 {[%emt 0:00:45]} 13. cxd4 {[%emt 0:00:04]} Bd7 {[%emt 0:00:31]} 14. Nf1 {[%emt 0:03:18]} Rfe8 {[%emt 0:02:17]} 15. d5 {[%emt 0:02:59]} Rec8 {[%emt 0:02:33]} 16. Bd3 {[%emt 0:01:35]} Nb7 {[%emt 0:01:46] C99: Closed Ruy Lopez: Chigorin Defence: 11 d4 Qc7 12 Nbd2 cxd4.} 17. Bd2 {[%emt 0:04:42]} Nc5 {[%emt 0:04:46]} 18. Rc1 {[%emt 0:00:52]} Qb7 {[%emt 0:03:38]} 19. Bb1 {[%emt 0:01:35]} b4 {[%emt 0:05:02]} 20. b3 {[%emt 0:06:16]} a5 {[%emt 0:08:32]} 21. g4 {[%emt 0:03:31]} Qa6 {[%emt 0:12:40]} 22. Ng3 {[%emt 0:12:51]} Nd3 {[%emt 0:03:15]} 23. Bxd3 Qxd3 {[%emt 0:00:18]} 24. Bg5 {[%emt 0:07:37]} Qxd1 {[%emt 0:02:09]} 25. Rexd1 {[%emt 0:00:35]} g6 {[%emt 0:04:26]} 26. Bxf6 $17 {[%emt 0:12:32]} (26. Be3 $11) 26... Bxf6 {[%emt 0:00:20]} 27. Nf1 {[%emt 0:07:30]} Bb5 {[%emt 0:04:52]} 28. Kg2 {[%emt 0:02:57]} Bd8 {[%emt 0:02:07]} 29. Ne3 {[%emt 0:03:06]} Bb6 {[%emt 0:02:47]} 30. Nd2 {[%emt 0:05:21]} Bxe3 {[%emt 0:03:09]} 31. fxe3 {[%emt 0:00:05]} Rc3 {[%emt 0:08:51]} 32. Rxc3 {[%emt 0:11:09]} bxc3 {[%emt 0:00:09]} 33. Nf3 {[%emt 0:02:15]} c2 {[%emt 0:04:22]} 34. Rc1 {[%emt 0:00:45]} Bd3 {[%emt 0:00:12]} 35. Nd2 {[%emt 0:00:09]} a4 {[%emt 0:01:36]} 36. Kf3 {[%emt 0:05:33]} axb3 {[%emt 0:01:42]} 37. axb3 {[%emt 0:00:11]} Rb8 {[%emt 0:01:19]} 38. g5 {[%emt 0:01:03]} Kf8 {[%emt 0:00:30]} 39. h4 {[%emt 0:01:46]} Ke7 {[%emt 0:00:24]} 40. Ra1 {[%emt 0:00:14]} Rb7 {[%emt 0:00:24]} 41. Kf2 {[%emt 0:01:15]} Kd7 {[%emt 0:00:25]} 42. Kf3 {[%emt 0:00:07]} Kc7 {[%emt 0:00:17]} 43. Rc1 {[%emt 0:00:37]} Rb4 {[%emt 0:01:10]} 44. Kf2 {[%emt 0:01:02]} Kb7 {[%emt 0:00:47]} 45. Kf3 {[%emt 0:01:04]} Ka6 {[%emt 0:00:33]} 46. Ra1+ {[%emt 0:00:10]} Kb5 {[%emt 0:00:27]} 47. Rc1 {[%emt 0:00:49]} Kc5 {[%emt 0:00:26]} 48. Ra1 {[%emt 0:00:49]} Rb7 {[%emt 0:00:36]} 49. Kf2 {[%emt 0:02:02]} Kb4 {[%emt 0:00:17]} 0-1

[Event "Chinese Championship-B Women 2024"]
[Site "Liaocheng"]
[Date "2024.04.25"]
[Round "10.11"]
[White "Xue, Shixuan"]
[Black "Zheng, Qingyu"]
[Result "1/2-1/2"]
[ECO "B19"]
[WhiteElo "1790"]
[BlackElo "1547"]
[Annotator "NA RC"]
[PlyCount "103"]
[EventDate "2024.04.24"]
[EventType "swiss"]
[EventCountry "CHN"]
[SourceTitle "playchess.com"]
[Source "ChessBase"]
[SourceQuality "1"]
[TimeControl "5400+30"]

1. e4 {[%emt 0:00:12]} c6 {[%emt 0:00:03]} 2. d4 {[%emt 0:00:09]} d5 {[%emt 0:00:05]} 3. Nc3 {[%emt 0:00:34]} dxe4 {[%emt 0:00:06]} 4. Nxe4 {[%emt 0:00:05]} Bf5 {[%emt 0:00:04]} 5. Ng3 {[%emt 0:00:11]} Bg6 {[%emt 0:00:04]} 6. h4 {[%emt 0:00:15]} h6 {[%emt 0:00:08]} 7. Nf3 {[%emt 0:00:28]} Nd7 {[%emt 0:00:36]} 8. Bf4 {[%emt 0:01:54]} Ngf6 {[%emt 0:00:57]} 9. Bd3 {[%emt 0:00:35]} Bxd3 {[%emt 0:00:38]} 10. Qxd3 {[%emt 0:00:06]} e6 {[%emt 0:01:22]} 11. O-O-O {[%emt 0:01:49]} Nd5 {[%emt 0:03:43]} 12. Qd2 {[%emt 0:07:33]} Qf6 {[%emt 0:03:46]} 13. Bg5 {[%emt 0:06:22]} Qg6 {[%emt 0:03:45]} 14. h5 {[%emt 0:00:17]} Qh7 {[%emt 0:00:20]} 15. Bh4 {[%emt 0:01:25]} Be7 {[%emt 0:06:39]} 16. Ne5 {[%emt 0:10:27]} Bxh4 17. Rxh4 {[%emt 0:00:07]} Nxe5 18. dxe5 {[%emt 0:00:07]} O-O-O {[%emt 0:18:51]} 19. Ne4 {[%emt 0:02:20]} g5 {[%emt 0:06:48]} 20. hxg6 {[%emt 0:04:53]} Qxg6 {[%emt 0:00:45]} 21. Nd6+ {[%emt 0:01:48]} Kb8 {[%emt 0:01:00]} 22. g3 {[%emt 0:05:38]} f6 {[%emt 0:05:57]} 23. c4 {[%emt 0:05:03]} fxe5 {[%emt 0:06:14]} 24. c5 {[%emt 0:17:58]} Rd7 {[%emt 0:08:03]} 25. Rdh1 {[%emt 0:01:57]} Rdh7 {[%emt 0:02:19]} 26. Rh5 {[%emt 0:00:55]} e4 {[%emt 0:03:52]} 27. Re5 {[%emt 0:08:49]} e3 {[%emt 0:10:22]} 28. fxe3 {[%emt 0:00:21]} Qxg3 {[%emt 0:02:02]} 29. Rxe6 {[%emt 0:00:14]} Nc7 {[%emt 0:02:04]} 30. Re4 {[%emt 0:04:34]} Qg5 {[%emt 0:01:21]} 31. Qc3 {[%emt 0:02:49]} Nd5 {[%emt 0:01:37]} 32. Qd4 {[%emt 0:00:25]} Rf8 {[%emt 0:00:54]} 33. a3 {[%emt 0:01:39]} Qg2 {[%emt 0:03:05]} 34. Rd1 {[%emt 0:00:13]} Qg7 {[%emt 0:01:01]} 35. Qxg7 {[%emt 0:04:42]} Rxg7 {[%emt 0:00:06]} 36. Re6 {[%emt 0:00:03]} h5 {[%emt 0:02:37]} 37. Rh1 {[%emt 0:01:06]} Rh7 {[%emt 0:00:17]} 38. Rh4 {[%emt 0:02:11]} a6 {[%emt 0:00:50]} 39. Re5 {[%emt 0:00:56]} Nf6 {[%emt 0:01:55]} 40. Rf5 {[%emt 0:00:23]} Rhh8 {[%emt 0:01:26]} 41. e4 {[%emt 0:00:39]} Nd7 {[%emt 0:01:13]} 42. Rhxh5 {[%emt 0:00:33]} Rxh5 {[%emt 0:00:10]} 43. Rxh5 {[%emt 0:00:03]} Kc7 {[%emt 0:00:34]} 44. b4 {[%emt 0:06:14]} b6 {[%emt 0:00:16]} 45. Rh7 {[%emt 0:02:26]} bxc5 {[%emt 0:00:22]} 46. bxc5 {[%emt 0:00:01]} Kd8 {[%emt 0:00:14]} 47. Nb7+ {[%emt 0:01:01]} Kc8 {[%emt 0:00:08]} 48. Nd6+ {[%emt 0:01:01]} Kd8 {[%emt 0:00:11]} 49. Kd2 {[%emt 0:00:51]} Nxc5 {[%emt 0:00:13]} 50. Ke3 {[%emt 0:00:20]} Nd7 {[%emt 0:00:24]} 51. Nf5 {[%emt 0:00:39]} Re8 {[%emt 0:00:49]} 52. Kf4 {[%emt 0:00:21]} 1/2-1/2

[Event "Chinese Championship-B Women 2024"]
[Site "Liaocheng"]
[Date "2024.04.25"]
[Round "10.12"]
[White "Wu, Ruoyi"]
[Black "Peng, Jingyi(Gd)"]
[Result "0-1"]
[ECO "D05"]
[WhiteElo "1604"]
[BlackElo "1725"]
[Annotator "NA RC"]
[PlyCount "154"]
[EventDate "2024.04.24"]
[EventType "swiss"]
[EventCountry "CHN"]
[SourceTitle "playchess.com"]
[Source "ChessBase"]
[SourceQuality "1"]
[TimeControl "5400+30"]

1. d4 {[%emt 0:00:10]} Nf6 {[%emt 0:00:10]} 2. Nf3 {[%emt 0:00:10]} c5 {[%emt 0:00:46]} 3. e3 {[%emt 0:00:30]} d5 {[%emt 0:00:22]} 4. c3 {[%emt 0:01:04]} Bg4 {[%emt 0:01:00]} 5. Nbd2 {[%emt 0:00:43]} e6 {[%emt 0:00:10]} 6. Bd3 {[%emt 0:01:01]} Nc6 {[%emt 0:00:28]} 7. O-O {[%emt 0:01:17]} Bd6 {[%emt 0:00:47]} 8. h3 {[%emt 0:00:43]} Bh5 {[%emt 0:00:16]} 9. dxc5 {[%emt 0:01:25]} Bxc5 {[%emt 0:00:04]} 10. b3 {[%emt 0:02:54]} O-O {[%emt 0:00:16]} 11. Bb2 {[%emt 0:00:15]} Qe7 {[%emt 0:04:14]} 12. c4 {[%emt 0:04:55]} Rfd8 {[%emt 0:02:17]} 13. g4 {[%emt 0:05:20]} dxc4 {[%emt 0:03:02]} 14. Bxc4 {[%emt 0:00:19]} Bg6 {[%emt 0:09:53]} 15. a3 {[%emt 0:06:15]} h5 {[%emt 0:05:41]} 16. b4 {[%emt 0:04:58]} Bb6 {[%emt 0:00:51]} 17. Bxf6 {[%emt 0:01:19]} Qxf6 {[%emt 0:00:13]} 18. Qb3 {[%emt 0:01:11]} Ne5 {[%emt 0:02:46]} 19. Nxe5 {[%emt 0:03:18]} Qxe5 {[%emt 0:00:05]} 20. Nf3 {[%emt 0:12:50]} Qf6 {[%emt 0:00:52]} 21. Nh2 {[%emt 0:00:52]} hxg4 {[%emt 0:02:07]} 22. hxg4 {[%emt 0:01:12]} Qh4 {[%emt 0:00:35]} 23. Ra2 {[%emt 0:03:47]} Bc7 {[%emt 0:01:43]} 24. f3 {[%emt 0:00:37]} Kh7 {[%emt 0:01:20]} 25. Qb2 {[%emt 0:04:14]} Rac8 {[%emt 0:02:06]} 26. Rc1 {[%emt 0:08:10]} b5 {[%emt 0:01:36]} 27. Bf1 {[%emt 0:02:15]} Be5 {[%emt 0:00:08]} 28. Rxc8 {[%emt 0:05:14]} Bxb2 {[%emt 0:00:05]} 29. Rxd8 {[%emt 0:00:07]} Qxd8 {[%emt 0:00:52]} 30. Rxb2 {[%emt 0:00:06]} Qd1 {[%emt 0:00:10]} 31. Kg2 {[%emt 0:03:23]} Qa1 {[%emt 0:01:36]} 32. Rf2 {[%emt 0:01:42]} Qxa3 {[%emt 0:00:04]} 33. Bxb5 {[%emt 0:00:27]} Qxe3 {[%emt 0:00:29]} 34. Be2 {[%emt 0:01:15]} Qb3 {[%emt 0:00:13]} 35. b5 {[%emt 0:00:14]} Bd3 {[%emt 0:01:18]} 36. Bxd3+ {[%emt 0:03:44]} Qxd3 {[%emt 0:00:08]} 37. Ra2 {[%emt 0:00:03]} Qd4 {[%emt 0:00:42]} 38. Nf1 {[%emt 0:00:53]} Qb6 {[%emt 0:00:45]} 39. Ng3 {[%emt 0:00:13]} f5 {[%emt 0:02:54]} 40. gxf5 {[%emt 0:01:17]} exf5 {[%emt 0:00:04]} 41. Ra4 {[%emt 0:01:30]} Kg8 {[%emt 0:03:54]} 42. Ra2 {[%emt 0:02:06]} Kf8 {[%emt 0:00:23]} 43. Ra4 {[%emt 0:00:50]} Qb7 {[%emt 0:03:41]} 44. Rf4 {[%emt 0:02:17]} g6 {[%emt 0:00:14]} 45. Ra4 {[%emt 0:00:14]} Ke8 {[%emt 0:01:08]} 46. Ra6 {[%emt 0:01:01]} Kd8 {[%emt 0:02:05]} 47. Rxg6 {[%emt 0:01:24]} Qxb5 {[%emt 0:00:08]} 48. Rg8+ {[%emt 0:00:13]} Kc7 {[%emt 0:00:14]} 49. Rg7+ {[%emt 0:00:16]} Kb6 {[%emt 0:00:34]} 50. Rg6+ {[%emt 0:00:19]} Ka5 {[%emt 0:00:57]} 51. Rg5 {[%emt 0:00:45]} Ka4 {[%emt 0:00:07]} 52. Rxf5 {[%emt 0:00:26]} Qb2+ {[%emt 0:00:06]} 53. Kh3 {[%emt 0:00:34]} Qh8+ {[%emt 0:00:53]} 54. Kg4 {[%emt 0:00:53]} a5 {[%emt 0:00:08]} 55. f4 {[%emt 0:00:53]} Kb4 {[%emt 0:00:06]} 56. Rh5 {[%emt 0:00:59]} Qc8+ {[%emt 0:00:36]} 57. f5 {[%emt 0:01:05]} a4 {[%emt 0:00:03]} 58. Kg5 {[%emt 0:00:54]} a3 {[%emt 0:00:11]} 59. f6 {[%emt 0:00:42]} Qc1+ {[%emt 0:05:30]} 60. Kg6 {[%emt 0:01:15]} a2 {[%emt 0:06:48]} 61. f7 {[%emt 0:03:41]} Qc6+ {[%emt 0:00:21]} 62. Kh7 {[%emt 0:00:53]} Qc7 {[%emt 0:00:21]} 63. Rf5 {[%emt 0:01:29]} a1=Q {[%emt 0:40:24]} 64. Nh5 {[%emt 0:01:40]} Qb1 {[%emt 0:00:00]} 65. Kg6 {[%emt 0:00:54]} Qxf7+ {[%emt 0:00:00]} 66. Kxf7 {[%emt 0:00:48]} Qxf5+ {[%emt 0:00:00]} 67. Nf6 {[%emt 0:00:03]} Kc5 {[%emt 0:00:00]} 68. Ke7 {[%emt 0:00:35]} Kc6 {[%emt 0:00:00]} 69. Kf7 {[%emt 0:00:34]} Kd6 {[%emt 0:00:00]} 70. Kg7 {[%emt 0:00:07]} Ke6 {[%emt 0:00:00]} 71. Nh7 {[%emt 0:01:00]} Qf7+ {[%emt 0:00:00]} 72. Kh6 {[%emt 0:00:10]} Kf5 {[%emt 0:00:00]} 73. Nf8 {[%emt 0:00:35]} Qxf8+ {[%emt 0:00:00]} 74. Kh7 {[%emt 0:00:04]} Qf7+ {[%emt 0:00:00]} 75. Kh8 {[%emt 0:00:06]} Qe7 {[%emt 0:00:00]} 76. Kg8 {[%emt 0:00:08]} Kg6 {[%emt 0:00:00]} 77. Kh8 {[%emt 0:00:03]} Qg7# {[%emt 0:00:00]} 0-1